[Event "Titled Tuesday Blitz February 07 Late 2023"]
[White "Grigorov, Grigor"]
[Black "Deac, Bogdan-Daniel"]
[WhiteFideId "2907313"]
[BlackFideId "1226380"]
[WhiteElo "2510"]
[BlackElo "2700"]
[Result "1/2-1/2"]
[Round "04"]
[TimeControl "180+2"]
[Date "2023.02.07"]
[WhiteClock "0:00:10"]
[BlackClock "0:00:05"]

1. d4 {[%clk 0:03:00]}  Nf6 {[%clk 0:02:59]} 2. Nf3 {[%clk 0:03:00]}  d5 {[%clk 0:02:59]} 3. c3 {[%clk 0:02:54]}  a6 {[%clk 0:02:57]} 4. Bf4 {[%clk 0:02:52]}  Bf5 {[%clk 0:02:57]} 5. Nbd2 {[%clk 0:02:51]}  e6 {[%clk 0:02:56]} 6. e3 {[%clk 0:02:51]}  c5 {[%clk 0:02:54]} 7. Be2 {[%clk 0:02:49]}  Nc6 {[%clk 0:02:53]} 8. h3 {[%clk 0:02:48]}  h6 {[%clk 0:02:49]} 9. O-O {[%clk 0:02:48]}  Rc8 {[%clk 0:02:46]} 10. Ne5 {[%clk 0:02:48]}  Be7 {[%clk 0:02:40]} 11. a4 {[%clk 0:02:25]}  O-O {[%clk 0:02:11]} 12. Nxc6 {[%clk 0:02:24]}  Rxc6 {[%clk 0:02:10]} 13. a5 {[%clk 0:02:23]}  Bd6 {[%clk 0:02:05]} 14. Bxd6 {[%clk 0:02:13]}  Qxd6 {[%clk 0:02:06]} 15. Qa4 {[%clk 0:02:11]}  Nd7 {[%clk 0:01:53]} 16. Qa3 {[%clk 0:02:09]}  Rfc8 {[%clk 0:01:50]} 17. Rfd1 {[%clk 0:02:08]}  Bg6 {[%clk 0:01:48]} 18. Rac1 {[%clk 0:02:03]}  Qc7 {[%clk 0:01:45]} 19. Bf3 {[%clk 0:01:53]}  cxd4 {[%clk 0:01:15]} 20. exd4 {[%clk 0:01:54]}  b5 {[%clk 0:01:15]} 21. axb6 {[%clk 0:01:52]}  Qxb6 {[%clk 0:01:15]} 22. Be2 {[%clk 0:01:44]}  a5 {[%clk 0:00:49]} 23. Ra1 {[%clk 0:01:36]}  Rb8 {[%clk 0:00:36]} 24. Qa4 {[%clk 0:01:13]}  Rc7 {[%clk 0:00:29]} 25. Ra2 {[%clk 0:01:05]}  Rbb7 {[%clk 0:00:19]} 26. Rc1 {[%clk 0:00:58]}  Nb8 {[%clk 0:00:18]} 27. Nf3 {[%clk 0:00:39]}  Nc6 {[%clk 0:00:18]} 28. Ne5 {[%clk 0:00:34]}  Nxe5 {[%clk 0:00:17]} 29. dxe5 {[%clk 0:00:35]}  Rc5 {[%clk 0:00:14]} 30. b4 {[%clk 0:00:30]}  Rcc7 {[%clk 0:00:04]} 31. bxa5 {[%clk 0:00:29]}  Qa7 {[%clk 0:00:05]} 32. a6 {[%clk 0:00:28]}  Rb8 {[%clk 0:00:04]} 33. Qa5 {[%clk 0:00:17]}  d4 {[%clk 0:00:03]} 34. c4 {[%clk 0:00:13]}  d3 {[%clk 0:00:04]} 35. Bf1 {[%clk 0:00:13]}  Rb6 {[%clk 0:00:03]} 36. c5 {[%clk 0:00:13]}  Rbc6 {[%clk 0:00:03]} 37. Qa3 {[%clk 0:00:12]}  Rxc5 {[%clk 0:00:02]} 38. Rxc5 {[%clk 0:00:12]}  Rxc5 {[%clk 0:00:03]} 39. Bxd3 {[%clk 0:00:12]}  Bxd3 {[%clk 0:00:02]} 40. Qxd3 {[%clk 0:00:12]}  Rxe5 {[%clk 0:00:03]} 41. Qd8+ {[%clk 0:00:11]}  Kh7 {[%clk 0:00:03]} 42. Qd3+ {[%clk 0:00:12]}  g6 {[%clk 0:00:03]} 43. Qc3 {[%clk 0:00:11]}  Rd5 {[%clk 0:00:03]} 44. g3 {[%clk 0:00:10]}  Rd6 {[%clk 0:00:03]} 45. Qf3 {[%clk 0:00:10]}  Kg7 {[%clk 0:00:02]} 46. Qb7 {[%clk 0:00:09]}  Qxb7 {[%clk 0:00:02]} 47. axb7 {[%clk 0:00:10]}  Rb6 {[%clk 0:00:02]} 48. Ra7 {[%clk 0:00:10]}  Rb2 {[%clk 0:00:03]} 49. h4 {[%clk 0:00:10]}  Kf6 {[%clk 0:00:03]} 50. Kg2 {[%clk 0:00:10]}  g5 {[%clk 0:00:04]} 51. hxg5+ {[%clk 0:00:10]}  hxg5 {[%clk 0:00:05]} 52. g4 {[%clk 0:00:11]}  Ke5 {[%clk 0:00:05]} 53. b8=Q+ {[%clk 0:00:10]}  Rxb8 {[%clk 0:00:05]} 54. Rxf7 {[%clk 0:00:10]}  Rb4 {[%clk 0:00:05]} 55. Kg3 {[%clk 0:00:10]} 1/2-1/2


[Site "https://www.chess.com"]

[Event "Titled Tuesday Blitz February 07 Late 2023"]
[White "Harvey, Marcus R"]
[Black "Salem, A.R. Saleh"]
[WhiteFideId "400092"]
[BlackFideId "9301348"]
[WhiteElo "2462"]
[BlackElo "2677"]
[Result "0-1"]
[Round "04"]
[TimeControl "180+2"]
[Date "2023.02.07"]
[WhiteClock "0:00:03"]
[BlackClock "0:00:08"]

1. d4 {[%clk 0:03:00]}  Nf6 {[%clk 0:02:59]} 2. c4 {[%clk 0:03:00]}  g6 {[%clk 0:03:00]} 3. Nc3 {[%clk 0:03:00]}  Bg7 {[%clk 0:03:01]} 4. e4 {[%clk 0:03:00]}  O-O {[%clk 0:03:02]} 5. Be2 {[%clk 0:03:00]}  d6 {[%clk 0:03:02]} 6. Be3 {[%clk 0:03:00]}  Na6 {[%clk 0:03:02]} 7. Nf3 {[%clk 0:02:59]}  e5 {[%clk 0:02:59]} 8. O-O {[%clk 0:02:58]}  exd4 {[%clk 0:02:59]} 9. Nxd4 {[%clk 0:02:58]}  Re8 {[%clk 0:02:59]} 10. Qc2 {[%clk 0:02:49]}  Nc5 {[%clk 0:02:58]} 11. f3 {[%clk 0:02:49]}  c6 {[%clk 0:02:58]} 12. Rad1 {[%clk 0:02:48]}  Qe7 {[%clk 0:02:54]} 13. Rfe1 {[%clk 0:02:44]}  a5 {[%clk 0:02:52]} 14. Bf1 {[%clk 0:02:44]}  a4 {[%clk 0:02:50]} 15. g3 {[%clk 0:02:42]}  h5 {[%clk 0:02:47]} 16. Bg2 {[%clk 0:02:34]}  Nfd7 {[%clk 0:02:41]} 17. Nde2 {[%clk 0:02:29]}  h4 {[%clk 0:02:37]} 18. g4 {[%clk 0:02:26]}  h3 {[%clk 0:02:37]} 19. Bxh3 {[%clk 0:02:21]}  Ne5 {[%clk 0:02:38]} 20. Bg2 {[%clk 0:02:16]}  Nxc4 {[%clk 0:02:38]} 21. Bf2 {[%clk 0:02:14]}  a3 {[%clk 0:02:19]} 22. b3 {[%clk 0:02:06]}  Nb2 {[%clk 0:02:14]} 23. Rd2 {[%clk 0:02:06]}  Na6 {[%clk 0:02:09]} 24. Bd4 {[%clk 0:01:58]}  Nb4 {[%clk 0:02:08]} 25. Qb1 {[%clk 0:01:58]}  Bh6 {[%clk 0:02:08]} 26. f4 {[%clk 0:01:54]}  Bxg4 {[%clk 0:02:08]} 27. e5 {[%clk 0:01:34]}  dxe5 {[%clk 0:01:33]} 28. Bxe5 {[%clk 0:01:31]}  Qh4 {[%clk 0:00:52]} 29. Ne4 {[%clk 0:01:22]}  Rxe5 {[%clk 0:00:49]} 30. fxe5 {[%clk 0:01:22]}  Bxd2 {[%clk 0:00:49]} 31. Nxd2 {[%clk 0:01:22]}  N4d3 {[%clk 0:00:48]} 32. Ng3 {[%clk 0:01:20]}  Nxe1 {[%clk 0:00:43]} 33. Qxe1 {[%clk 0:01:21]}  Re8 {[%clk 0:00:34]} 34. Qe3 {[%clk 0:01:10]}  Nd1 {[%clk 0:00:32]} 35. Qf4 {[%clk 0:01:09]}  Qe7 {[%clk 0:00:32]} 36. Nde4 {[%clk 0:01:05]}  Qxe5 {[%clk 0:00:15]} 37. Nf6+ {[%clk 0:00:56]}  Kg7 {[%clk 0:00:16]} 38. Nxe8+ {[%clk 0:00:56]}  Qxe8 {[%clk 0:00:16]} 39. Ne4 {[%clk 0:00:53]}  Bf5 {[%clk 0:00:14]} 40. Nd6 {[%clk 0:00:30]}  Qe1+ {[%clk 0:00:09]} 41. Bf1 {[%clk 0:00:31]}  Qe3+ {[%clk 0:00:06]} 42. Qxe3 {[%clk 0:00:30]}  Nxe3 {[%clk 0:00:07]} 43. Nxb7 {[%clk 0:00:03]}  Bb1 {[%clk 0:00:06]} 44. Na5 {[%clk 0:00:02]}  Bxa2 {[%clk 0:00:07]} 45. Bd3 {[%clk 0:00:02]}  Nd5 {[%clk 0:00:06]} 46. Kf2 {[%clk 0:00:03]}  Nb4 {[%clk 0:00:07]} 47. Be4 {[%clk 0:00:02]}  f5 {[%clk 0:00:07]} 48. Bf3 {[%clk 0:00:03]}  Bb1 {[%clk 0:00:08]} 0-1


[Site "https://www.chess.com"]

[Event "Titled Tuesday Blitz February 07 Late 2023"]
[White "Taspinar, Yanki"]
[Black "Bortnyk, Olexandr"]
[WhiteFideId "34561188"]
[BlackFideId "14120828"]
[WhiteElo "2262"]
[BlackElo "2605"]
[Result "0-1"]
[Round "04"]
[TimeControl "180+2"]
[Date "2023.02.07"]
[WhiteClock "0:00:03"]
[BlackClock "0:00:06"]

1. Nf3 {[%clk 0:03:00]}  Nf6 {[%clk 0:02:57]} 2. g3 {[%clk 0:03:01]}  b6 {[%clk 0:02:57]} 3. Bg2 {[%clk 0:03:01]}  Bb7 {[%clk 0:02:58]} 4. O-O {[%clk 0:03:02]}  g6 {[%clk 0:02:57]} 5. b3 {[%clk 0:03:02]}  Bg7 {[%clk 0:02:58]} 6. Bb2 {[%clk 0:03:03]}  O-O {[%clk 0:02:58]} 7. c4 {[%clk 0:03:03]}  e6 {[%clk 0:02:56]} 8. Nc3 {[%clk 0:03:02]}  d5 {[%clk 0:02:56]} 9. cxd5 {[%clk 0:03:03]}  exd5 {[%clk 0:02:57]} 10. d4 {[%clk 0:03:03]}  Re8 {[%clk 0:02:57]} 11. Rc1 {[%clk 0:03:03]}  c6 {[%clk 0:02:51]} 12. e3 {[%clk 0:03:00]}  Nbd7 {[%clk 0:02:51]} 13. Ne2 {[%clk 0:02:59]}  Ne4 {[%clk 0:02:50]} 14. Nf4 {[%clk 0:02:57]}  Qf6 {[%clk 0:02:44]} 15. Nd3 {[%clk 0:02:53]}  Ba6 {[%clk 0:02:44]} 16. Re1 {[%clk 0:02:27]}  Qd6 {[%clk 0:02:18]} 17. Nfe5 {[%clk 0:02:14]}  Rac8 {[%clk 0:02:13]} 18. Bh3 {[%clk 0:02:02]}  f5 {[%clk 0:02:12]} 19. Nxd7 {[%clk 0:01:41]}  Qxd7 {[%clk 0:02:10]} 20. Ne5 {[%clk 0:01:41]}  Qd6 {[%clk 0:02:04]} 21. Bg2 {[%clk 0:01:30]}  c5 {[%clk 0:02:05]} 22. dxc5 {[%clk 0:01:16]}  bxc5 {[%clk 0:02:06]} 23. Nd3 {[%clk 0:01:14]}  Bxb2 {[%clk 0:01:52]} 24. Nxb2 {[%clk 0:01:15]}  Red8 {[%clk 0:01:42]} 25. Qc2 {[%clk 0:01:08]}  Qf6 {[%clk 0:01:36]} 26. Red1 {[%clk 0:01:06]}  Kg7 {[%clk 0:01:35]} 27. Nd3 {[%clk 0:00:36]}  Bxd3 {[%clk 0:01:27]} 28. Qxd3 {[%clk 0:00:28]}  c4 {[%clk 0:01:18]} 29. Qc2 {[%clk 0:00:17]}  cxb3 {[%clk 0:01:11]} 30. Qxb3 {[%clk 0:00:18]}  Nc3 {[%clk 0:01:11]} 31. Qb7+ {[%clk 0:00:13]}  Kh6 {[%clk 0:01:11]} 32. Rxc3 {[%clk 0:00:11]}  Qxc3 {[%clk 0:01:04]} 33. Qxa7 {[%clk 0:00:08]}  Qc5 {[%clk 0:00:54]} 34. Qa4 {[%clk 0:00:06]}  Qc4 {[%clk 0:00:47]} 35. Qa7 {[%clk 0:00:04]}  Rc7 {[%clk 0:00:45]} 36. Qa5 {[%clk 0:00:04]}  Qc5 {[%clk 0:00:39]} 37. Qd2 {[%clk 0:00:04]}  Qc2 {[%clk 0:00:37]} 38. Qd4 {[%clk 0:00:04]}  Rc4 {[%clk 0:00:36]} 39. Qd3 {[%clk 0:00:02]}  Qxd3 {[%clk 0:00:36]} 40. Rxd3 {[%clk 0:00:03]}  d4 {[%clk 0:00:36]} 41. exd4 {[%clk 0:00:03]}  Rdxd4 {[%clk 0:00:35]} 42. Rxd4 {[%clk 0:00:02]}  Rxd4 {[%clk 0:00:36]} 43. Bf3 {[%clk 0:00:02]}  Kg5 {[%clk 0:00:28]} 44. h4+ {[%clk 0:00:02]}  Kf6 {[%clk 0:00:28]} 45. Kg2 {[%clk 0:00:03]}  f4 {[%clk 0:00:27]} 46. g4 {[%clk 0:00:03]}  h6 {[%clk 0:00:28]} 47. Be2 {[%clk 0:00:02]}  Ra4 {[%clk 0:00:27]} 48. Kf3 {[%clk 0:00:01]}  Rxa2 {[%clk 0:00:26]} 49. Bc4 {[%clk 0:00:02]}  Ra3+ {[%clk 0:00:26]} 50. Kg2 {[%clk 0:00:01]}  g5 {[%clk 0:00:24]} 51. hxg5+ {[%clk 0:00:01]}  Kxg5 {[%clk 0:00:25]} 52. Be2 {[%clk 0:00:01]}  Kf6 {[%clk 0:00:17]} 53. Bf3 {[%clk 0:00:02]}  Ke5 {[%clk 0:00:18]} 54. Be2 {[%clk 0:00:02]}  Ra2 {[%clk 0:00:19]} 55. Bf3 {[%clk 0:00:03]}  Rb2 {[%clk 0:00:20]} 56. Bd1 {[%clk 0:00:02]}  Kd4 {[%clk 0:00:19]} 57. Bf3 {[%clk 0:00:03]}  Ra2 {[%clk 0:00:19]} 58. Bc6 {[%clk 0:00:03]}  Rc2 {[%clk 0:00:18]} 59. Bb5 {[%clk 0:00:03]}  Rc3 {[%clk 0:00:18]} 60. Ba6 {[%clk 0:00:04]}  Rb3 {[%clk 0:00:16]} 61. Bc8 {[%clk 0:00:04]}  Ke5 {[%clk 0:00:12]} 62. Bd7 {[%clk 0:00:03]}  Kf6 {[%clk 0:00:12]} 63. Bc6 {[%clk 0:00:03]}  Rc3 {[%clk 0:00:12]} 64. Bf3 {[%clk 0:00:03]}  Kg5 {[%clk 0:00:13]} 65. Be2 {[%clk 0:00:03]}  Rc7 {[%clk 0:00:12]} 66. Bf3 {[%clk 0:00:03]}  Re7 {[%clk 0:00:12]} 67. Bd1 {[%clk 0:00:03]}  Re8 {[%clk 0:00:12]} 68. Bf3 {[%clk 0:00:04]}  Re1 {[%clk 0:00:13]} 69. Kh3 {[%clk 0:00:02]}  Rg1 {[%clk 0:00:12]} 70. Kh2 {[%clk 0:00:03]}  Rxg4 {[%clk 0:00:05]} 71. Bxg4 {[%clk 0:00:03]}  Kxg4 {[%clk 0:00:06]} 72. Kg2 {[%clk 0:00:04]}  f3+ {[%clk 0:00:06]} 73. Kh2 {[%clk 0:00:04]}  Kh4 {[%clk 0:00:02]} 74. Kg1 {[%clk 0:00:04]}  Kh3 {[%clk 0:00:02]} 75. Kh1 {[%clk 0:00:05]}  Kg4 {[%clk 0:00:03]} 76. Kg1 {[%clk 0:00:05]}  Kf4 {[%clk 0:00:04]} 77. Kh2 {[%clk 0:00:06]}  Ke4 {[%clk 0:00:05]} 78. Kh3 {[%clk 0:00:06]}  Kd3 {[%clk 0:00:05]} 79. Kg3 {[%clk 0:00:03]}  Ke2 {[%clk 0:00:06]} 0-1


[Site "https://www.chess.com"]

[Event "Titled Tuesday Blitz February 07 Late 2023"]
[White "Babazada, Khazar"]
[Black "Maksimovic, Bojan"]
[WhiteFideId "13413554"]
[BlackFideId "14408120"]
[WhiteElo "2474"]
[BlackElo "2486"]
[Result "0-1"]
[Round "04"]
[TimeControl "180+2"]
[Date "2023.02.07"]
[WhiteClock "0:00:21"]
[BlackClock "0:00:06"]

1. Nf3 {[%clk 0:03:00]}  g6 {[%clk 0:03:00]} 2. g3 {[%clk 0:03:00]}  Bg7 {[%clk 0:03:01]} 3. Bg2 {[%clk 0:03:00]}  d6 {[%clk 0:03:01]} 4. O-O {[%clk 0:03:01]}  Bd7 {[%clk 0:03:02]} 5. c4 {[%clk 0:02:58]}  Qc8 {[%clk 0:03:02]} 6. Qb3 {[%clk 0:02:57]}  Nc6 {[%clk 0:03:01]} 7. Nc3 {[%clk 0:02:58]}  Nf6 {[%clk 0:02:46]} 8. d3 {[%clk 0:02:58]}  Rb8 {[%clk 0:02:36]} 9. Bd2 {[%clk 0:02:51]}  Bh3 {[%clk 0:02:31]} 10. Nd5 {[%clk 0:02:41]}  Bxg2 {[%clk 0:02:30]} 11. Kxg2 {[%clk 0:02:40]}  O-O {[%clk 0:02:26]} 12. Qa4 {[%clk 0:02:27]}  Re8 {[%clk 0:02:03]} 13. Rac1 {[%clk 0:02:26]}  a6 {[%clk 0:01:51]} 14. Bc3 {[%clk 0:02:13]}  e5 {[%clk 0:01:49]} 15. e4 {[%clk 0:02:11]}  Nd7 {[%clk 0:01:44]} 16. b4 {[%clk 0:02:10]}  Nd8 {[%clk 0:01:42]} 17. Bb2 {[%clk 0:01:58]}  c6 {[%clk 0:01:41]} 18. Ne3 {[%clk 0:01:58]}  Ne6 {[%clk 0:01:41]} 19. Rfd1 {[%clk 0:01:56]}  Nd4 {[%clk 0:01:39]} 20. Bxd4 {[%clk 0:01:45]}  exd4 {[%clk 0:01:39]} 21. Nc2 {[%clk 0:01:46]}  c5 {[%clk 0:01:38]} 22. bxc5 {[%clk 0:01:46]}  dxc5 {[%clk 0:01:08]} 23. Rb1 {[%clk 0:01:46]}  Ne5 {[%clk 0:00:42]} 24. Nxe5 {[%clk 0:01:46]}  Bxe5 {[%clk 0:00:43]} 25. Ne1 {[%clk 0:01:44]}  f5 {[%clk 0:00:28]} 26. f4 {[%clk 0:01:37]}  Bc7 {[%clk 0:00:27]} 27. e5 {[%clk 0:01:37]}  b5 {[%clk 0:00:24]} 28. cxb5 {[%clk 0:01:35]}  Qb7+ {[%clk 0:00:24]} 29. Nf3 {[%clk 0:01:36]}  axb5 {[%clk 0:00:25]} 30. Qb3+ {[%clk 0:01:36]}  Kg7 {[%clk 0:00:22]} 31. Rdc1 {[%clk 0:01:37]}  Qc6 {[%clk 0:00:13]} 32. Kf2 {[%clk 0:01:34]}  c4 {[%clk 0:00:04]} 33. Qb4 {[%clk 0:00:50]}  c3 {[%clk 0:00:04]} 34. Ke2 {[%clk 0:00:49]}  Red8 {[%clk 0:00:04]} 35. Qe7+ {[%clk 0:00:47]}  Kg8 {[%clk 0:00:04]} 36. Kf2 {[%clk 0:00:41]}  Rd7 {[%clk 0:00:04]} 37. Qb4 {[%clk 0:00:40]}  Ra8 {[%clk 0:00:03]} 38. Rc2 {[%clk 0:00:40]}  Ra5 {[%clk 0:00:03]} 39. Qb3+ {[%clk 0:00:41]}  Qd5 {[%clk 0:00:03]} 40. Nxd4 {[%clk 0:00:38]}  Bb6 {[%clk 0:00:03]} 41. Qxd5+ {[%clk 0:00:20]}  Rxd5 {[%clk 0:00:04]} 42. Ke2 {[%clk 0:00:21]}  Bxd4 {[%clk 0:00:05]} 43. Rb4 {[%clk 0:00:22]}  Ra4 {[%clk 0:00:04]} 44. Rb3 {[%clk 0:00:19]}  b4 {[%clk 0:00:05]} 45. Kd1 {[%clk 0:00:19]}  Rda5 {[%clk 0:00:05]} 46. e6 {[%clk 0:00:18]}  Kf8 {[%clk 0:00:05]} 47. Re2 {[%clk 0:00:18]}  Ke7 {[%clk 0:00:06]} 48. Rc2 {[%clk 0:00:18]}  Ra6 {[%clk 0:00:06]} 49. h3 {[%clk 0:00:17]}  Rxe6 {[%clk 0:00:06]} 50. a3 {[%clk 0:00:18]}  bxa3 {[%clk 0:00:06]} 51. Rb7+ {[%clk 0:00:19]}  Kf6 {[%clk 0:00:06]} 52. Ra2 {[%clk 0:00:19]}  Rb6 {[%clk 0:00:06]} 53. Rxb6+ {[%clk 0:00:19]}  Bxb6 {[%clk 0:00:06]} 54. Kc2 {[%clk 0:00:20]}  Bd4 {[%clk 0:00:05]} 55. Kb3 {[%clk 0:00:21]}  Ra8 {[%clk 0:00:05]} 56. Kc4 {[%clk 0:00:21]}  Rd8 {[%clk 0:00:05]} 57. Rxa3 {[%clk 0:00:21]}  c2 {[%clk 0:00:05]} 58. Ra6+ {[%clk 0:00:21]}  Kg7 {[%clk 0:00:06]} 0-1


[Site "https://www.chess.com"]

[Event "Titled Tuesday Blitz February 07 Late 2023"]
[White "Dzida, Kamil"]
[Black "Yoo, Christopher Woojin"]
[WhiteFideId "21828652"]
[BlackFideId "30909694"]
[WhiteElo "2352"]
[BlackElo "2607"]
[Result "1/2-1/2"]
[Round "04"]
[TimeControl "180+2"]
[Date "2023.02.07"]
[WhiteClock "0:00:13"]
[BlackClock "0:00:03"]

1. e4 {[%clk 0:03:00]}  c6 {[%clk 0:02:58]} 2. d4 {[%clk 0:03:00]}  d5 {[%clk 0:02:58]} 3. Nc3 {[%clk 0:02:57]}  dxe4 {[%clk 0:02:58]} 4. Nxe4 {[%clk 0:02:58]}  Nf6 {[%clk 0:02:58]} 5. Nxf6+ {[%clk 0:02:58]}  exf6 {[%clk 0:02:56]} 6. c3 {[%clk 0:02:59]}  Bd6 {[%clk 0:02:57]} 7. Bd3 {[%clk 0:02:59]}  O-O {[%clk 0:02:57]} 8. Qc2 {[%clk 0:03:00]}  Re8+ {[%clk 0:02:56]} 9. Ne2 {[%clk 0:03:00]}  h5 {[%clk 0:02:56]} 10. O-O {[%clk 0:03:00]}  h4 {[%clk 0:02:54]} 11. Nf4 {[%clk 0:03:01]}  g5 {[%clk 0:02:40]} 12. Ne2 {[%clk 0:02:28]}  h3 {[%clk 0:02:30]} 13. f4 {[%clk 0:02:10]}  hxg2 {[%clk 0:02:24]} 14. Rf2 {[%clk 0:02:10]}  Bh3 {[%clk 0:01:49]} 15. fxg5 {[%clk 0:02:06]}  Nd7 {[%clk 0:00:52]} 16. Bf4 {[%clk 0:01:57]}  Bf8 {[%clk 0:00:41]} 17. gxf6 {[%clk 0:01:31]}  Nxf6 {[%clk 0:00:18]} 18. Be5 {[%clk 0:01:31]}  Bg7 {[%clk 0:00:16]} 19. Nf4 {[%clk 0:01:31]}  Ng4 {[%clk 0:00:12]} 20. Bxg7 {[%clk 0:01:16]}  Qh4 {[%clk 0:00:10]} 21. Nxh3 {[%clk 0:01:06]}  Qxh3 {[%clk 0:00:10]} 22. Be5 {[%clk 0:00:56]}  Rxe5 {[%clk 0:00:09]} 23. Rxg2 {[%clk 0:00:54]}  Rg5 {[%clk 0:00:07]} 24. Re1 {[%clk 0:00:43]}  Qh4 {[%clk 0:00:03]} 25. Qe2 {[%clk 0:00:36]}  Kh8 {[%clk 0:00:01]} 26. Rf1 {[%clk 0:00:29]}  Nxh2 {[%clk 0:00:01]} 27. Rxf7 {[%clk 0:00:12]}  Rxg2+ {[%clk 0:00:01]} 28. Qxg2 {[%clk 0:00:12]}  Rg8 {[%clk 0:00:02]} 29. Rh7+ {[%clk 0:00:13]}  Qxh7 {[%clk 0:00:02]} 30. Bxh7 {[%clk 0:00:13]}  Nf3+ {[%clk 0:00:02]} 31. Kf2 {[%clk 0:00:12]}  Rxg2+ {[%clk 0:00:03]} 32. Kxg2 {[%clk 0:00:13]}  Nxd4 {[%clk 0:00:04]} 33. cxd4 {[%clk 0:00:12]}  Kxh7 {[%clk 0:00:04]} 34. Kf3 {[%clk 0:00:13]}  Kg6 {[%clk 0:00:05]} 35. Ke4 {[%clk 0:00:14]}  Kf6 {[%clk 0:00:05]} 36. d5 {[%clk 0:00:14]}  c5 {[%clk 0:00:05]} 37. a4 {[%clk 0:00:14]}  a5 {[%clk 0:00:04]} 38. b3 {[%clk 0:00:13]}  b6 {[%clk 0:00:04]} 39. Kf4 {[%clk 0:00:13]}  Ke7 {[%clk 0:00:03]} 40. Ke5 {[%clk 0:00:13]}  Kd7 {[%clk 0:00:03]} 41. Kf4 {[%clk 0:00:12]}  Kd6 {[%clk 0:00:03]} 42. Ke4 {[%clk 0:00:13]}  Kc7 {[%clk 0:00:02]} 43. Ke5 {[%clk 0:00:13]}  Kd7 {[%clk 0:00:02]} 44. Kf4 {[%clk 0:00:13]}  Kd6 {[%clk 0:00:02]} 45. Ke4 {[%clk 0:00:13]}  Kc7 {[%clk 0:00:02]} 46. Ke5 {[%clk 0:00:13]}  Kd7 {[%clk 0:00:03]} 1/2-1/2


[Site "https://www.chess.com"]

[Event "Titled Tuesday Blitz February 07 Late 2023"]
[White "Martinez Alcantara, Jose Eduardo"]
[Black "Rustemov, Alexander"]
[WhiteFideId "3805662"]
[BlackFideId "4119002"]
[WhiteElo "2619"]
[BlackElo "2525"]
[Result "1-0"]
[Round "04"]
[TimeControl "180+2"]
[Date "2023.02.07"]
[WhiteClock "0:00:21"]
[BlackClock "0:00:24"]

1. e4 {[%clk 0:03:00]}  e6 {[%clk 0:02:56]} 2. d4 {[%clk 0:03:01]}  d5 {[%clk 0:02:55]} 3. Nd2 {[%clk 0:03:02]}  dxe4 {[%clk 0:02:55]} 4. Nxe4 {[%clk 0:03:03]}  Bd7 {[%clk 0:02:56]} 5. Nf3 {[%clk 0:03:03]}  Bc6 {[%clk 0:02:57]} 6. Bd3 {[%clk 0:03:04]}  Nd7 {[%clk 0:02:57]} 7. O-O {[%clk 0:03:04]}  Ngf6 {[%clk 0:02:58]} 8. Ned2 {[%clk 0:03:05]}  Be7 {[%clk 0:02:58]} 9. b3 {[%clk 0:03:03]}  b5 {[%clk 0:02:57]} 10. Bb2 {[%clk 0:03:03]}  b4 {[%clk 0:02:57]} 11. Ne5 {[%clk 0:02:52]}  Bd5 {[%clk 0:02:49]} 12. Qe2 {[%clk 0:02:39]}  c6 {[%clk 0:02:45]} 13. Ndc4 {[%clk 0:02:33]}  a5 {[%clk 0:02:44]} 14. Ne3 {[%clk 0:02:29]}  Qc7 {[%clk 0:02:40]} 15. Nxd5 {[%clk 0:02:08]}  cxd5 {[%clk 0:02:40]} 16. f4 {[%clk 0:01:58]}  g6 {[%clk 0:02:34]} 17. g4 {[%clk 0:01:53]}  O-O {[%clk 0:02:22]} 18. f5 {[%clk 0:01:51]}  exf5 {[%clk 0:02:20]} 19. gxf5 {[%clk 0:01:51]}  Bd6 {[%clk 0:02:12]} 20. Rae1 {[%clk 0:01:51]}  Rae8 {[%clk 0:02:11]} 21. Kh1 {[%clk 0:01:46]}  Re7 {[%clk 0:02:10]} 22. Qe3 {[%clk 0:01:30]}  Rfe8 {[%clk 0:02:06]} 23. Qg5 {[%clk 0:01:25]}  Bxe5 {[%clk 0:01:16]} 24. dxe5 {[%clk 0:01:23]}  Rxe5 {[%clk 0:01:17]} 25. Bxe5 {[%clk 0:01:21]}  Rxe5 {[%clk 0:01:17]} 26. Qg3 {[%clk 0:00:45]}  Kg7 {[%clk 0:01:14]} 27. fxg6 {[%clk 0:00:43]}  hxg6 {[%clk 0:01:13]} 28. Rxe5 {[%clk 0:00:39]}  Nxe5 {[%clk 0:01:10]} 29. Re1 {[%clk 0:00:36]}  Nfd7 {[%clk 0:01:08]} 30. Qf4 {[%clk 0:00:32]}  Qc3 {[%clk 0:01:04]} 31. Rf1 {[%clk 0:00:33]}  f5 {[%clk 0:00:49]} 32. Bxf5 {[%clk 0:00:18]}  gxf5 {[%clk 0:00:42]} 33. Qxf5 {[%clk 0:00:19]}  Qc6 {[%clk 0:00:41]} 34. Rg1+ {[%clk 0:00:19]}  Ng6 {[%clk 0:00:35]} 35. Rxg6+ {[%clk 0:00:19]}  Qxg6 {[%clk 0:00:35]} 36. Qxd7+ {[%clk 0:00:20]}  Kh6 {[%clk 0:00:34]} 37. Qh3+ {[%clk 0:00:20]}  Kg7 {[%clk 0:00:33]} 38. Qg3 {[%clk 0:00:20]}  Qxg3 {[%clk 0:00:22]} 39. hxg3 {[%clk 0:00:21]}  Kf6 {[%clk 0:00:23]} 40. Kg2 {[%clk 0:00:21]}  Ke5 {[%clk 0:00:24]} 41. g4 {[%clk 0:00:21]}  Kd4 {[%clk 0:00:23]} 42. g5 {[%clk 0:00:18]}  Kc3 {[%clk 0:00:24]} 43. g6 {[%clk 0:00:19]}  Kxc2 {[%clk 0:00:24]} 44. g7 {[%clk 0:00:20]}  d4 {[%clk 0:00:25]} 45. g8=Q {[%clk 0:00:21]}  d3 {[%clk 0:00:26]} 46. Qc4+ {[%clk 0:00:20]}  Kd2 {[%clk 0:00:24]} 47. Kf2 {[%clk 0:00:21]} 1-0


[Site "https://www.chess.com"]

[Event "Titled Tuesday Blitz February 07 Late 2023"]
[White "Hakobyan, Aram"]
[Black "Gorodetzky, David"]
[WhiteFideId "13306677"]
[BlackFideId "2813416"]
[WhiteElo "2608"]
[BlackElo "2485"]
[Result "1-0"]
[Round "04"]
[TimeControl "180+2"]
[Date "2023.02.07"]
[WhiteClock "0:01:27"]
[BlackClock "0:00:19"]

1. Nf3 {[%clk 0:03:00]}  Nf6 {[%clk 0:02:59]} 2. c4 {[%clk 0:03:00]}  c5 {[%clk 0:02:56]} 3. Nc3 {[%clk 0:03:00]}  Nc6 {[%clk 0:02:51]} 4. d4 {[%clk 0:02:57]}  cxd4 {[%clk 0:02:45]} 5. Nxd4 {[%clk 0:02:58]}  e6 {[%clk 0:02:46]} 6. g3 {[%clk 0:02:55]}  d5 {[%clk 0:02:36]} 7. Bg2 {[%clk 0:02:51]}  Bc5 {[%clk 0:02:35]} 8. Nb3 {[%clk 0:02:48]}  Bb6 {[%clk 0:02:35]} 9. cxd5 {[%clk 0:02:41]}  exd5 {[%clk 0:02:36]} 10. O-O {[%clk 0:02:41]}  d4 {[%clk 0:02:30]} 11. Na4 {[%clk 0:02:38]}  O-O {[%clk 0:02:30]} 12. Bg5 {[%clk 0:02:38]}  h6 {[%clk 0:02:21]} 13. Bxf6 {[%clk 0:02:38]}  Qxf6 {[%clk 0:02:21]} 14. Rc1 {[%clk 0:02:39]}  Rd8 {[%clk 0:02:14]} 15. Nac5 {[%clk 0:02:36]}  Ne5 {[%clk 0:01:59]} 16. Nxb7 {[%clk 0:02:26]}  Bxb7 {[%clk 0:01:59]} 17. Bxb7 {[%clk 0:02:27]}  Rab8 {[%clk 0:01:58]} 18. Be4 {[%clk 0:02:27]}  d3 {[%clk 0:01:56]} 19. exd3 {[%clk 0:02:23]}  h5 {[%clk 0:01:43]} 20. Qxh5 {[%clk 0:02:19]}  g6 {[%clk 0:01:38]} 21. Qe2 {[%clk 0:02:18]}  Kg7 {[%clk 0:01:37]} 22. Kg2 {[%clk 0:02:12]}  Rh8 {[%clk 0:01:36]} 23. d4 {[%clk 0:02:01]}  Qe6 {[%clk 0:01:31]} 24. Bf5 {[%clk 0:01:35]}  Qd5+ {[%clk 0:00:20]} 25. Qe4 {[%clk 0:01:33]}  Rbd8 {[%clk 0:00:19]} 26. Qxd5 {[%clk 0:01:26]}  Rxd5 {[%clk 0:00:19]} 27. Be4 {[%clk 0:01:27]} 1-0


[Site "https://www.chess.com"]